{"text_format":"1","workbook":"xlsx","n_sheets":4,"sheets":["Лист1","Мазда","Москвич","Тойота"],"not_rendered":{"charts":0,"images":0,"macros":1,"external_links":0,"defined_names":0,"comments":0,"pivot_tables":0},"unopened":[],"bounds":{"document_bytes":16777216,"sheet_cells":100000,"rows_first":2000,"rows_last":500,"rows_between":2000,"halvings":0,"cell_chars":16384,"cell_head_chars":4096},"cells_cut":0,"cells_raw":0,"read":"whole","date_system":"1900"}

{"sheet":"Лист1","index":0,"n_rows":8,"n_cols":13,"rows_kept":8,"cut":false,"hidden":false,"merged":[]}
[null,"январь","февраль","март","апрель","май","июнь","июль","август","сентябрь","октябрь","ноябрь","декабрь"]
["Мазда",{"$f":"Пробег($A2,B$1)","v":4},{"$f":"Пробег($A2,C$1)","v":6},8,10,12,14,16,18,20,22,24,26]
["Тойота",{"$f":"Пробег($A3,B$1)","v":22},23,24,25,26,27,28,29,30,31,32,33]
["Москвич",2,3,4,5,6,7,8,9,10,11,12,13]
[]
["Мазда",{"$f":"SUMIF(INDIRECT($A6&\"!$C:$C\"),B$1,INDIRECT($A6&\"!$B:$B\"))","v":4},{"$f":"SUMIF(INDIRECT($A6&\"!$C:$C\"),C$1,INDIRECT($A6&\"!$B:$B\"))","v":6},8,10,12,14,16,18,20,22,24,26]
["Тойота",{"$f":"SUMIF(INDIRECT($A7&\"!$C:$C\"),B$1,INDIRECT($A7&\"!$B:$B\"))","v":22},23,24,25,26,27,28,29,30,31,32,33]
["Москвич",2,3,4,5,6,7,8,9,10,11,12,13]

{"sheet":"Мазда","index":1,"n_rows":25,"n_cols":5,"rows_kept":25,"cut":false,"hidden":false,"merged":[]}
["Мазда","пробег","Месяц"]
[null,2,"январь",null,{"$f":"SUMIFS(B2:B13,C2:C13,C2)","v":2}]
[null,3,"февраль"]
[null,4,"март"]
[null,5,"апрель"]
[null,6,"май"]
[null,7,"июнь"]
[null,8,"июль"]
[null,9,"август"]
[null,10,"сентябрь"]
[null,11,"октябрь"]
[null,12,"ноябрь"]
[null,13,"декабрь"]
[null,2,"январь"]
[null,3,"февраль"]
[null,4,"март"]
[null,5,"апрель"]
[null,6,"май"]
[null,7,"июнь"]
[null,8,"июль"]
[null,9,"август"]
[null,10,"сентябрь"]
[null,11,"октябрь"]
[null,12,"ноябрь"]
[null,13,"декабрь"]

{"sheet":"Москвич","index":2,"n_rows":13,"n_cols":3,"rows_kept":13,"cut":false,"hidden":false,"merged":[]}
["Москвич","пробег","Месяц"]
[null,2,"январь"]
[null,3,"февраль"]
[null,4,"март"]
[null,5,"апрель"]
[null,6,"май"]
[null,7,"июнь"]
[null,8,"июль"]
[null,9,"август"]
[null,10,"сентябрь"]
[null,11,"октябрь"]
[null,12,"ноябрь"]
[null,13,"декабрь"]

{"sheet":"Тойота","index":3,"n_rows":13,"n_cols":3,"rows_kept":13,"cut":false,"hidden":false,"merged":[]}
["Тойота","пробег","Месяц"]
[null,22,"январь"]
[null,23,"февраль"]
[null,24,"март"]
[null,25,"апрель"]
[null,26,"май"]
[null,27,"июнь"]
[null,28,"июль"]
[null,29,"август"]
[null,30,"сентябрь"]
[null,31,"октябрь"]
[null,32,"ноябрь"]
[null,33,"декабрь"]